[Event "January 9 Late 2024"]
[Site "https://www.chess.com"]
[Date "2024.01.09"]
[Round "5"]
[White "Quirke, Jeffrey"]
[Black "Zhukov, Maksim"]
[Result "1-0"]
[Board "205"]
[TimeControl "180+1"]
[WhiteFideId "2013029"]
[BlackFideId "34181790"]
[WhiteElo "2131"]
[BlackElo "2279"]
[WhiteTeam "USA"]
[BlackTeam "RUS"]
[WhiteClock "0:00:12"]
[BlackClock "0:00:33"]

1. e4 {[%clk 0:03:00]}  c5 {[%clk 0:02:58]} 2. c3 {[%clk 0:02:59]}  e6 {[%clk 0:02:59]} 3. d4 {[%clk 0:02:57]}  cxd4 {[%clk 0:03:00]} 4. cxd4 {[%clk 0:02:57]}  a6 {[%clk 0:03:01]} 5. Nf3 {[%clk 0:02:55]}  b5 {[%clk 0:03:01]} 6. d5 {[%clk 0:02:53]}  Bb7 {[%clk 0:03:01]} 7. a4 {[%clk 0:02:51]}  b4 {[%clk 0:03:00]} 8. Bc4 {[%clk 0:02:47]}  Nf6 {[%clk 0:02:58]} 9. Nbd2 {[%clk 0:02:43]}  exd5 {[%clk 0:02:54]} 10. exd5 {[%clk 0:02:41]}  Bxd5 {[%clk 0:02:53]} 11. O-O {[%clk 0:02:40]}  Be7 {[%clk 0:02:48]} 12. Bxd5 {[%clk 0:02:33]}  Nxd5 {[%clk 0:02:47]} 13. Ne4 {[%clk 0:02:33]}  Nc7 {[%clk 0:02:40]} 14. Nd6+ {[%clk 0:02:33]}  Bxd6 {[%clk 0:02:40]} 15. Qxd6 {[%clk 0:02:33]}  Ne6 {[%clk 0:02:39]} 16. Re1 {[%clk 0:02:13]}  Qe7 {[%clk 0:02:38]} 17. Qd5 {[%clk 0:02:13]}  Nc6 {[%clk 0:02:35]} 18. Bg5 {[%clk 0:02:14]}  f6 {[%clk 0:02:32]} 19. Bf4 {[%clk 0:02:03]}  Kf7 {[%clk 0:02:24]} 20. Bd6 {[%clk 0:02:02]}  Qd8 {[%clk 0:02:24]} 21. Rac1 {[%clk 0:01:41]}  Qa5 {[%clk 0:02:21]} 22. Rc5 {[%clk 0:01:32]}  Qb6 {[%clk 0:02:17]} 23. a5 {[%clk 0:01:11]}  Qb7 {[%clk 0:01:59]} 24. Nd4 {[%clk 0:01:07]}  Rhe8 {[%clk 0:01:54]} 25. Nxe6 {[%clk 0:00:52]}  Rxe6 {[%clk 0:01:43]} 26. Rxe6 {[%clk 0:00:50]}  dxe6 {[%clk 0:01:43]} 27. Qxc6 {[%clk 0:00:50]}  Qxc6 {[%clk 0:01:42]} 28. Rxc6 {[%clk 0:00:51]}  Rd8 {[%clk 0:01:42]} 29. Rxa6 {[%clk 0:00:49]}  e5 {[%clk 0:01:41]} 30. g3 {[%clk 0:00:46]}  b3 {[%clk 0:01:41]} 31. Rb6 {[%clk 0:00:39]}  Ke6 {[%clk 0:01:34]} 32. Bb4+ {[%clk 0:00:38]}  Kf5 {[%clk 0:01:28]} 33. Bc3 {[%clk 0:00:38]}  Ke4 {[%clk 0:01:23]} 34. Kg2 {[%clk 0:00:36]}  f5 {[%clk 0:01:22]} 35. Rb4+ {[%clk 0:00:36]}  Kd3 {[%clk 0:01:21]} 36. Rxb3 {[%clk 0:00:36]}  Kc2 {[%clk 0:01:20]} 37. Rb7 {[%clk 0:00:34]}  e4 {[%clk 0:01:19]} 38. Rxg7 {[%clk 0:00:33]}  Kd1 {[%clk 0:01:16]} 39. Rf7 {[%clk 0:00:32]}  Rd5 {[%clk 0:01:16]} 40. Rxh7 {[%clk 0:00:32]}  Ke2 {[%clk 0:01:16]} 41. a6 {[%clk 0:00:30]}  Rd6 {[%clk 0:01:14]} 42. a7 {[%clk 0:00:28]}  f4 {[%clk 0:01:15]} 43. gxf4 {[%clk 0:00:28]}  Rg6+ {[%clk 0:01:15]} 44. Kh3 {[%clk 0:00:27]}  e3 {[%clk 0:01:08]} 45. a8=Q {[%clk 0:00:22]}  Kxf2 {[%clk 0:01:00]} 46. Re7 {[%clk 0:00:18]}  e2 {[%clk 0:00:51]} 47. Rxe2+ {[%clk 0:00:17]}  Kxe2 {[%clk 0:00:47]} 48. Qg2+ {[%clk 0:00:18]}  Ke3 {[%clk 0:00:38]} 49. Qxg6 {[%clk 0:00:15]}  Kf3 {[%clk 0:00:36]} 50. f5 {[%clk 0:00:14]}  Kf4 {[%clk 0:00:36]} 51. f6 {[%clk 0:00:14]}  Ke3 {[%clk 0:00:36]} 52. f7 {[%clk 0:00:13]}  Ke2 {[%clk 0:00:34]} 53. f8=Q {[%clk 0:00:12]}  Kd1 {[%clk 0:00:35]} 54. Qf2 {[%clk 0:00:11]}  Kc1 {[%clk 0:00:33]} 55. Qgg1# {[%clk 0:00:12]} 1-0

[Event "January 9 Late 2024"]
[Site "https://www.chess.com"]
[Date "2024.01.09"]
[Round "5"]
[White "Hernandez Jimenez, Alexander Andres"]
[Black "Winkels, Marcel"]
[Result "1-0"]
[Board "209"]
[TimeControl "180+1"]
[WhiteFideId "3900452"]
[BlackFideId "1003887"]
[WhiteElo "2233"]
[BlackElo "1996"]
[WhiteTeam "VEN"]
[BlackTeam "NED"]
[WhiteClock "0:00:03"]
[BlackClock "0:00:00"]

1. e4 {[%clk 0:02:51]}  c5 {[%clk 0:02:58]} 2. Nf3 {[%clk 0:02:51]}  d6 {[%clk 0:02:59]} 3. d4 {[%clk 0:02:51]}  cxd4 {[%clk 0:02:59]} 4. Nxd4 {[%clk 0:02:52]}  Nf6 {[%clk 0:02:59]} 5. Nc3 {[%clk 0:02:52]}  a6 {[%clk 0:03:00]} 6. h3 {[%clk 0:02:51]}  e5 {[%clk 0:02:58]} 7. Nde2 {[%clk 0:02:49]}  b5 {[%clk 0:02:41]} 8. g4 {[%clk 0:02:44]}  Bb7 {[%clk 0:02:40]} 9. Bg2 {[%clk 0:02:43]}  Be7 {[%clk 0:02:35]} 10. Ng3 {[%clk 0:02:39]}  O-O {[%clk 0:02:27]} 11. g5 {[%clk 0:02:38]}  Nfd7 {[%clk 0:02:26]} 12. h4 {[%clk 0:02:32]}  Nc5 {[%clk 0:02:23]} 13. Nf5 {[%clk 0:02:31]}  Nbd7 {[%clk 0:02:02]} 14. Be3 {[%clk 0:02:22]}  Rc8 {[%clk 0:02:00]} 15. O-O {[%clk 0:02:20]}  Nb6 {[%clk 0:01:52]} 16. Nd5 {[%clk 0:01:56]}  Nxd5 {[%clk 0:01:51]} 17. exd5 {[%clk 0:01:55]}  Re8 {[%clk 0:01:46]} 18. Nxe7+ {[%clk 0:01:33]}  Qxe7 {[%clk 0:01:44]} 19. c3 {[%clk 0:01:23]}  e4 {[%clk 0:01:41]} 20. Bxc5 {[%clk 0:01:18]}  Rxc5 {[%clk 0:01:39]} 21. Re1 {[%clk 0:01:14]}  Rxd5 {[%clk 0:01:35]} 22. Qg4 {[%clk 0:01:12]}  Re5 {[%clk 0:01:34]} 23. Re3 {[%clk 0:01:12]}  Qe6 {[%clk 0:01:28]} 24. Qg3 {[%clk 0:01:09]}  Qe7 {[%clk 0:01:16]} 25. Rae1 {[%clk 0:01:08]}  d5 {[%clk 0:01:15]} 26. f4 {[%clk 0:00:56]}  Re6 {[%clk 0:00:51]} 27. Bh3 {[%clk 0:00:54]}  Rc6 {[%clk 0:00:48]} 28. f5 {[%clk 0:00:52]}  Qe5 {[%clk 0:00:45]} 29. Qxe5 {[%clk 0:00:28]}  Rxe5 {[%clk 0:00:44]} 30. Kg2 {[%clk 0:00:26]}  Bc8 {[%clk 0:00:41]} 31. Rf1 {[%clk 0:00:25]}  f6 {[%clk 0:00:35]} 32. Kg3 {[%clk 0:00:24]}  Rd6 {[%clk 0:00:30]} 33. Kf4 {[%clk 0:00:23]}  Bb7 {[%clk 0:00:27]} 34. Rd1 {[%clk 0:00:19]}  Re8 {[%clk 0:00:23]} 35. Rd4 {[%clk 0:00:18]}  Red8 {[%clk 0:00:22]} 36. Bg2 {[%clk 0:00:14]}  Kf7 {[%clk 0:00:21]} 37. a3 {[%clk 0:00:14]}  Ke7 {[%clk 0:00:20]} 38. Bh3 {[%clk 0:00:14]}  Bc8 {[%clk 0:00:19]} 39. Bg4 {[%clk 0:00:14]}  Bb7 {[%clk 0:00:18]} 40. Bh3 {[%clk 0:00:14]}  a5 {[%clk 0:00:18]} 41. Bg4 {[%clk 0:00:14]}  Rb6 {[%clk 0:00:17]} 42. Bh3 {[%clk 0:00:14]}  Rdd6 {[%clk 0:00:16]} 43. Bg4 {[%clk 0:00:14]}  Bc8 {[%clk 0:00:16]} 44. Bh3 {[%clk 0:00:14]}  Bd7 {[%clk 0:00:16]} 45. Bg4 {[%clk 0:00:14]}  Bc8 {[%clk 0:00:15]} 46. Bh3 {[%clk 0:00:14]}  Rbc6 {[%clk 0:00:15]} 47. Bg4 {[%clk 0:00:14]}  Rc4 {[%clk 0:00:16]} 48. Rd2 {[%clk 0:00:13]}  b4 {[%clk 0:00:15]} 49. axb4 {[%clk 0:00:13]}  axb4 {[%clk 0:00:15]} 50. cxb4 {[%clk 0:00:12]}  Rxb4 {[%clk 0:00:14]} 51. Rc3 {[%clk 0:00:12]}  Kd7 {[%clk 0:00:12]} 52. Ke3 {[%clk 0:00:10]}  Ba6 {[%clk 0:00:11]} 53. h5 {[%clk 0:00:08]}  fxg5 {[%clk 0:00:09]} 54. f6+ {[%clk 0:00:08]}  Ke8 {[%clk 0:00:09]} 55. fxg7 {[%clk 0:00:08]}  Kf7 {[%clk 0:00:08]} 56. Rc7+ {[%clk 0:00:07]}  Kg8 {[%clk 0:00:05]} 57. Rf2 {[%clk 0:00:05]}  Rb8 {[%clk 0:00:03]} 58. Rff7 {[%clk 0:00:02]}  d4+ {[%clk 0:00:01]} 59. Kxe4 {[%clk 0:00:02]}  d3 {[%clk 0:00:00]} 60. Rfe7 {[%clk 0:00:03]} 1-0

[Event "January 9 Late 2024"]
[Site "https://www.chess.com"]
[Date "2024.01.10"]
[Round "5"]
[White "Reinecke, Katharina"]
[Black "Wang, Alexander J"]
[Result "1-0"]
[Board "210"]
[TimeControl "180+1"]
[WhiteFideId "12929727"]
[BlackFideId "30955270"]
[WhiteElo "2019"]
[BlackElo "2221"]
[WhiteTeam "GER"]
[BlackTeam "USA"]
[WhiteClock "0:01:38"]
[BlackClock "0:01:12"]

1. d4 {[%clk 0:03:00]}  d5 {[%clk 0:02:58]} 2. Nf3 {[%clk 0:02:59]}  e6 {[%clk 0:02:51]} 3. g3 {[%clk 0:02:58]}  c5 {[%clk 0:02:50]} 4. Bg2 {[%clk 0:02:57]}  Nc6 {[%clk 0:02:47]} 5. e3 {[%clk 0:02:54]}  Nf6 {[%clk 0:02:44]} 6. O-O {[%clk 0:02:54]}  Be7 {[%clk 0:02:41]} 7. dxc5 {[%clk 0:02:54]}  Bxc5 {[%clk 0:02:40]} 8. b3 {[%clk 0:02:53]}  O-O {[%clk 0:02:39]} 9. Bb2 {[%clk 0:02:53]}  Be7 {[%clk 0:02:38]} 10. Nbd2 {[%clk 0:02:53]}  b5 {[%clk 0:02:35]} 11. a4 {[%clk 0:02:51]}  Qb6 {[%clk 0:02:31]} 12. axb5 {[%clk 0:02:50]}  Qxb5 {[%clk 0:02:32]} 13. Nd4 {[%clk 0:02:34]}  Nxd4 {[%clk 0:02:30]} 14. Bxd4 {[%clk 0:02:33]}  a6 {[%clk 0:02:21]} 15. c4 {[%clk 0:02:31]}  Qd7 {[%clk 0:01:59]} 16. cxd5 {[%clk 0:02:28]}  exd5 {[%clk 0:02:00]} 17. Qe2 {[%clk 0:02:18]}  Bb7 {[%clk 0:01:45]} 18. Rfc1 {[%clk 0:02:12]}  Bc6 {[%clk 0:01:43]} 19. Nf3 {[%clk 0:02:07]}  Rac8 {[%clk 0:01:35]} 20. Ne5 {[%clk 0:02:04]}  Qe6 {[%clk 0:01:29]} 21. Nxc6 {[%clk 0:02:02]}  Rxc6 {[%clk 0:01:30]} 22. Rxc6 {[%clk 0:01:56]}  Qxc6 {[%clk 0:01:31]} 23. Rxa6 {[%clk 0:01:55]}  Qc1+ {[%clk 0:01:28]} 24. Qf1 {[%clk 0:01:52]}  Rc8 {[%clk 0:01:28]} 25. Bxf6 {[%clk 0:01:45]}  Bxf6 {[%clk 0:01:26]} 26. Bxd5 {[%clk 0:01:44]}  Qxf1+ {[%clk 0:01:25]} 27. Kxf1 {[%clk 0:01:43]}  h6 {[%clk 0:01:12]} 28. Ra7 {[%clk 0:01:38]} 1-0

[Event "January 9 Late 2024"]
[Site "https://www.chess.com"]
[Date "2024.01.09"]
[Round "6"]
[White "Nepomniachtchi, Ian"]
[Black "Tabatabaei, M. Amin"]
[Result "1-0"]
[Board "1"]
[TimeControl "180+1"]
[WhiteFideId "4168119"]
[BlackFideId "12521213"]
[WhiteElo "3129"]
[BlackElo "3101"]
[WhiteTeam "RUS"]
[BlackTeam "IRI"]
[WhiteClock "0:02:07"]
[BlackClock "0:00:03"]

1. e4 {[%clk 0:03:00]}  c6 {[%clk 0:03:00]} 2. d4 {[%clk 0:03:00]}  d5 {[%clk 0:03:01]} 3. Nc3 {[%clk 0:03:01]}  dxe4 {[%clk 0:03:01]} 4. Nxe4 {[%clk 0:03:02]}  Nf6 {[%clk 0:03:02]} 5. Nxf6+ {[%clk 0:03:03]}  exf6 {[%clk 0:03:03]} 6. Be3 {[%clk 0:03:03]}  Bd6 {[%clk 0:03:03]} 7. Bd3 {[%clk 0:03:03]}  Na6 {[%clk 0:03:04]} 8. a3 {[%clk 0:03:03]}  O-O {[%clk 0:03:04]} 9. Ne2 {[%clk 0:03:04]}  Nc7 {[%clk 0:03:04]} 10. c4 {[%clk 0:03:04]}  Re8 {[%clk 0:03:01]} 11. Qc2 {[%clk 0:03:04]}  g6 {[%clk 0:02:59]} 12. O-O {[%clk 0:03:04]}  Bg4 {[%clk 0:02:58]} 13. Rfe1 {[%clk 0:03:02]}  Bxe2 {[%clk 0:02:58]} 14. Bxe2 {[%clk 0:02:57]}  Qd7 {[%clk 0:02:57]} 15. Bf1 {[%clk 0:02:52]}  Rad8 {[%clk 0:02:56]} 16. g3 {[%clk 0:02:51]}  Ne6 {[%clk 0:02:54]} 17. Rad1 {[%clk 0:02:50]}  Qc7 {[%clk 0:02:39]} 18. Bg2 {[%clk 0:02:47]}  c5 {[%clk 0:02:36]} 19. dxc5 {[%clk 0:02:45]}  Bxc5 {[%clk 0:02:37]} 20. Bxc5 {[%clk 0:02:43]}  Nxc5 {[%clk 0:02:31]} 21. Rxe8+ {[%clk 0:02:38]}  Rxe8 {[%clk 0:02:32]} 22. b4 {[%clk 0:02:39]}  Ne6 {[%clk 0:02:23]} 23. c5 {[%clk 0:02:39]}  Kg7 {[%clk 0:02:19]} 24. Qd3 {[%clk 0:02:33]}  b6 {[%clk 0:02:09]} 25. c6 {[%clk 0:02:30]}  Rd8 {[%clk 0:01:54]} 26. Qc2 {[%clk 0:02:30]}  Rxd1+ {[%clk 0:01:55]} 27. Qxd1 {[%clk 0:02:30]}  Kf8 {[%clk 0:01:56]} 28. Qc1 {[%clk 0:02:21]}  h5 {[%clk 0:01:54]} 29. Bd5 {[%clk 0:02:21]}  Ke7 {[%clk 0:01:52]} 30. Bxe6 {[%clk 0:02:20]}  Kxe6 {[%clk 0:01:46]} 31. b5 {[%clk 0:02:20]}  Ke7 {[%clk 0:01:45]} 32. Qf4 {[%clk 0:02:16]}  Qxf4 {[%clk 0:00:55]} 33. gxf4 {[%clk 0:02:17]}  f5 {[%clk 0:00:56]} 34. Kf1 {[%clk 0:02:17]}  Kd6 {[%clk 0:00:50]} 35. Ke2 {[%clk 0:02:17]}  a6 {[%clk 0:00:47]} 36. a4 {[%clk 0:02:17]}  axb5 {[%clk 0:00:46]} 37. axb5 {[%clk 0:02:18]}  Ke6 {[%clk 0:00:43]} 38. Kd3 {[%clk 0:02:18]}  Kd6 {[%clk 0:00:44]} 39. Kd4 {[%clk 0:02:19]}  f6 {[%clk 0:00:21]} 40. h4 {[%clk 0:02:15]}  Ke6 {[%clk 0:00:21]} 41. c7 {[%clk 0:02:12]}  Kd7 {[%clk 0:00:21]} 42. Kd5 {[%clk 0:02:12]}  Kxc7 {[%clk 0:00:14]} 43. Ke6 {[%clk 0:02:13]}  g5 {[%clk 0:00:12]} 44. fxg5 {[%clk 0:02:10]}  fxg5 {[%clk 0:00:13]} 45. hxg5 {[%clk 0:02:11]}  h4 {[%clk 0:00:14]} 46. g6 {[%clk 0:02:10]}  h3 {[%clk 0:00:14]} 47. g7 {[%clk 0:02:11]}  h2 {[%clk 0:00:15]} 48. g8=Q {[%clk 0:02:11]}  h1=Q {[%clk 0:00:16]} 49. Qf7+ {[%clk 0:02:11]}  Kb8 {[%clk 0:00:16]} 50. Qe8+ {[%clk 0:02:11]}  Kc7 {[%clk 0:00:15]} 51. Qd7+ {[%clk 0:02:11]}  Kb8 {[%clk 0:00:16]} 52. Qd8+ {[%clk 0:02:11]}  Kb7 {[%clk 0:00:03]} 53. Qd5+ {[%clk 0:02:08]}  Qxd5+ {[%clk 0:00:04]} 54. Kxd5 {[%clk 0:02:07]}  Kc7 {[%clk 0:00:03]} 1-0

[Event "January 9 Late 2024"]
[Site "https://www.chess.com"]
[Date "2024.01.09"]
[Round "6"]
[White "Theodorou, Nikolas"]
[Black "Firouzja, Alireza"]
[Result "0-1"]
[Board "4"]
[TimeControl "180+1"]
[WhiteFideId "4262875"]
[BlackFideId "12573981"]
[WhiteElo "3039"]
[BlackElo "3164"]
[WhiteTeam "GRE"]
[BlackTeam "FRA"]
[WhiteClock "0:00:00"]
[BlackClock "0:00:03"]

1. Nf3 {[%clk 0:03:00]}  c5 {[%clk 0:02:57]} 2. b3 {[%clk 0:03:00]}  d6 {[%clk 0:02:56]} 3. c4 {[%clk 0:02:56]}  e5 {[%clk 0:02:53]} 4. Nc3 {[%clk 0:02:56]}  g6 {[%clk 0:02:45]} 5. e3 {[%clk 0:02:47]}  Bg7 {[%clk 0:02:45]} 6. Bb2 {[%clk 0:02:38]}  Nc6 {[%clk 0:02:38]} 7. d3 {[%clk 0:02:26]}  f5 {[%clk 0:02:34]} 8. g3 {[%clk 0:02:25]}  Nge7 {[%clk 0:02:27]} 9. Bg2 {[%clk 0:02:25]}  O-O {[%clk 0:02:28]} 10. O-O {[%clk 0:02:26]}  a6 {[%clk 0:02:28]} 11. a3 {[%clk 0:02:26]}  h6 {[%clk 0:02:26]} 12. b4 {[%clk 0:02:20]}  cxb4 {[%clk 0:02:19]} 13. axb4 {[%clk 0:02:20]}  Nxb4 {[%clk 0:02:19]} 14. Ba3 {[%clk 0:02:18]}  Nec6 {[%clk 0:02:16]} 15. Nd5 {[%clk 0:01:47]}  Nxd5 {[%clk 0:01:51]} 16. cxd5 {[%clk 0:01:47]}  Na7 {[%clk 0:01:52]} 17. Nd2 {[%clk 0:01:41]}  Nb5 {[%clk 0:01:52]} 18. Bb2 {[%clk 0:01:37]}  Bd7 {[%clk 0:01:51]} 19. Nc4 {[%clk 0:01:33]}  Rc8 {[%clk 0:01:49]} 20. Qb3 {[%clk 0:01:29]}  Be8 {[%clk 0:01:47]} 21. f4 {[%clk 0:01:28]}  exf4 {[%clk 0:01:45]} 22. Bxg7 {[%clk 0:01:28]}  Kxg7 {[%clk 0:01:45]} 23. gxf4 {[%clk 0:01:28]}  Qf6 {[%clk 0:01:41]} 24. Kh1 {[%clk 0:01:23]}  Bf7 {[%clk 0:01:41]} 25. Rae1 {[%clk 0:01:23]}  Rfe8 {[%clk 0:01:29]} 26. Qb4 {[%clk 0:01:10]}  Rc5 {[%clk 0:01:09]} 27. Nb6 {[%clk 0:01:02]}  Qc3 {[%clk 0:01:06]} 28. Qb1 {[%clk 0:01:02]}  Na3 {[%clk 0:00:56]} 29. Qa2 {[%clk 0:01:02]}  Rb5 {[%clk 0:00:51]} 30. Rc1 {[%clk 0:00:45]}  Qb2 {[%clk 0:00:44]} 31. Qxb2+ {[%clk 0:00:45]}  Rxb2 {[%clk 0:00:45]} 32. Nc8 {[%clk 0:00:34]}  Nb5 {[%clk 0:00:32]} 33. e4 {[%clk 0:00:35]}  fxe4 {[%clk 0:00:21]} 34. dxe4 {[%clk 0:00:36]}  Rd2 {[%clk 0:00:18]} 35. Rfe1 {[%clk 0:00:22]}  g5 {[%clk 0:00:18]} 36. fxg5 {[%clk 0:00:08]}  hxg5 {[%clk 0:00:19]} 37. Kg1 {[%clk 0:00:09]}  Bg6 {[%clk 0:00:18]} 38. Re3 {[%clk 0:00:03]}  g4 {[%clk 0:00:14]} 39. h3 {[%clk 0:00:03]}  gxh3 {[%clk 0:00:13]} 40. Rxh3 {[%clk 0:00:04]}  Bxe4 {[%clk 0:00:09]} 41. Bxe4 {[%clk 0:00:05]}  Rxe4 {[%clk 0:00:09]} 42. Rg3+ {[%clk 0:00:06]}  Kf6 {[%clk 0:00:05]} 43. Nb6 {[%clk 0:00:03]}  Rf4 {[%clk 0:00:03]} 44. Nd7+ {[%clk 0:00:02]}  Kf5 {[%clk 0:00:03]} 45. Re1 {[%clk 0:00:02]}  Nd4 {[%clk 0:00:03]} 46. Kh1 {[%clk 0:00:00]}  Nf3 {[%clk 0:00:03]} 0-1

[Event "January 9 Late 2024"]
[Site "https://www.chess.com"]
[Date "2024.01.09"]
[Round "6"]
[White "Yoo, Christopher Woojin"]
[Black "Dubov, Daniil"]
[Result "0-1"]
[Board "5"]
[TimeControl "180+1"]
[WhiteFideId "30909694"]
[BlackFideId "24126055"]
[WhiteElo "2983"]
[BlackElo "3123"]
[WhiteTeam "USA"]
[BlackTeam "RUS"]
[WhiteClock "0:00:03"]
[BlackClock "0:00:04"]

1. e4 {[%clk 0:03:00]}  c5 {[%clk 0:02:59]} 2. Nf3 {[%clk 0:03:01]}  e6 {[%clk 0:02:59]} 3. g3 {[%clk 0:02:54]}  d5 {[%clk 0:02:55]} 4. exd5 {[%clk 0:02:54]}  exd5 {[%clk 0:02:56]} 5. Bg2 {[%clk 0:02:54]}  Qe7+ {[%clk 0:02:55]} 6. Kf1 {[%clk 0:02:54]}  Nc6 {[%clk 0:02:54]} 7. d4 {[%clk 0:02:48]}  Qd8 {[%clk 0:02:51]} 8. Nc3 {[%clk 0:02:35]}  Nf6 {[%clk 0:02:50]} 9. Bg5 {[%clk 0:02:26]}  Be6 {[%clk 0:02:49]} 10. Qd2 {[%clk 0:01:23]}  Be7 {[%clk 0:02:28]} 11. Bxf6 {[%clk 0:01:23]}  Bxf6 {[%clk 0:02:26]} 12. dxc5 {[%clk 0:01:23]}  O-O {[%clk 0:02:23]} 13. h4 {[%clk 0:01:12]}  h6 {[%clk 0:02:11]} 14. Bh3 {[%clk 0:01:05]}  Bxc3 {[%clk 0:01:47]} 15. bxc3 {[%clk 0:01:01]}  Qa5 {[%clk 0:01:31]} 16. Kg2 {[%clk 0:00:25]}  Qxc5 {[%clk 0:01:28]} 17. Rhe1 {[%clk 0:00:25]}  Rae8 {[%clk 0:01:10]} 18. Nd4 {[%clk 0:00:21]}  Bxh3+ {[%clk 0:01:00]} 19. Kxh3 {[%clk 0:00:21]}  Ne5 {[%clk 0:01:01]} 20. Kg2 {[%clk 0:00:20]}  Ng4 {[%clk 0:00:51]} 21. Rxe8 {[%clk 0:00:17]}  Rxe8 {[%clk 0:00:51]} 22. Re1 {[%clk 0:00:17]}  Rxe1 {[%clk 0:00:44]} 23. Qxe1 {[%clk 0:00:18]}  Nf6 {[%clk 0:00:45]} 24. f3 {[%clk 0:00:18]}  Qc4 {[%clk 0:00:40]} 25. g4 {[%clk 0:00:18]}  Qxa2 {[%clk 0:00:30]} 26. g5 {[%clk 0:00:14]}  hxg5 {[%clk 0:00:31]} 27. hxg5 {[%clk 0:00:14]}  Nd7 {[%clk 0:00:31]} 28. g6 {[%clk 0:00:14]}  Nf8 {[%clk 0:00:21]} 29. gxf7+ {[%clk 0:00:14]}  Kxf7 {[%clk 0:00:22]} 30. Qe5 {[%clk 0:00:14]}  Qa6 {[%clk 0:00:14]} 31. Qxd5+ {[%clk 0:00:13]}  Ke8 {[%clk 0:00:13]} 32. Qe5+ {[%clk 0:00:10]}  Kf7 {[%clk 0:00:11]} 33. Qd5+ {[%clk 0:00:06]}  Ke8 {[%clk 0:00:05]} 34. Nf5 {[%clk 0:00:02]}  Ne6 {[%clk 0:00:02]} 35. Nd6+ {[%clk 0:00:02]}  Ke7 {[%clk 0:00:02]} 36. Nf5+ {[%clk 0:00:02]}  Kf6 {[%clk 0:00:02]} 37. Ng3 {[%clk 0:00:03]}  Qc6 {[%clk 0:00:02]} 38. Ne4+ {[%clk 0:00:02]}  Ke7 {[%clk 0:00:02]} 39. Qe5 {[%clk 0:00:02]}  Qd7 {[%clk 0:00:02]} 40. Ng3 {[%clk 0:00:02]}  Qc7 {[%clk 0:00:02]} 41. Nf5+ {[%clk 0:00:02]}  Kf7 {[%clk 0:00:03]} 42. Qd5 {[%clk 0:00:02]}  Kf6 {[%clk 0:00:03]} 43. Kf2 {[%clk 0:00:03]}  Qc5+ {[%clk 0:00:03]} 44. Ne3 {[%clk 0:00:02]}  Qxd5 {[%clk 0:00:03]} 45. Nxd5+ {[%clk 0:00:03]}  Ke5 {[%clk 0:00:03]} 46. Ne3 {[%clk 0:00:03]}  Nf4 {[%clk 0:00:04]} 47. Ke1 {[%clk 0:00:02]}  Nd5 {[%clk 0:00:04]} 48. Nc4+ {[%clk 0:00:01]}  Kf4 {[%clk 0:00:04]} 49. Kd2 {[%clk 0:00:02]}  Kxf3 {[%clk 0:00:04]} 50. Nd6 {[%clk 0:00:02]}  b6 {[%clk 0:00:04]} 51. c4 {[%clk 0:00:03]}  Ne7 {[%clk 0:00:04]} 52. Nb5 {[%clk 0:00:02]}  a5 {[%clk 0:00:04]} 53. Nc3 {[%clk 0:00:02]}  g5 {[%clk 0:00:04]} 54. Nd5 {[%clk 0:00:02]}  Nc8 {[%clk 0:00:04]} 55. Ne3 {[%clk 0:00:02]}  g4 {[%clk 0:00:04]} 56. Kd3 {[%clk 0:00:01]}  g3 {[%clk 0:00:04]} 57. Nf5 {[%clk 0:00:02]}  g2 {[%clk 0:00:03]} 58. Nh4+ {[%clk 0:00:02]}  Kf2 {[%clk 0:00:04]} 59. Nxg2 {[%clk 0:00:03]}  Kxg2 {[%clk 0:00:05]} 60. Kd4 {[%clk 0:00:04]}  Na7 {[%clk 0:00:02]} 61. c5 {[%clk 0:00:03]}  b5 {[%clk 0:00:02]} 62. Kd5 {[%clk 0:00:01]}  a4 {[%clk 0:00:02]} 63. Kd4 {[%clk 0:00:02]}  Kf3 {[%clk 0:00:03]} 64. Kc3 {[%clk 0:00:01]}  Ke4 {[%clk 0:00:03]} 65. Kb4 {[%clk 0:00:02]}  Kd5 {[%clk 0:00:04]} 66. c3 {[%clk 0:00:01]}  Kc6 {[%clk 0:00:02]} 67. c4 {[%clk 0:00:02]}  bxc4 {[%clk 0:00:03]} 68. Kxc4 {[%clk 0:00:02]}  Nb5 {[%clk 0:00:03]} 69. Kb4 {[%clk 0:00:03]}  a3 {[%clk 0:00:03]} 70. Kb3 {[%clk 0:00:03]}  Kxc5 {[%clk 0:00:04]} 71. Ka2 {[%clk 0:00:03]}  Kc4 {[%clk 0:00:04]} 0-1

[Event "January 9 Late 2024"]
[Site "https://www.chess.com"]
[Date "2024.01.09"]
[Round "6"]
[White "Alekseenko, Kirill"]
[Black "Oparin, Grigoriy"]
[Result "1-0"]
[Board "6"]
[TimeControl "180+1"]
[WhiteFideId "4135539"]
[BlackFideId "24125890"]
[WhiteElo "2934"]
[BlackElo "3066"]
[WhiteTeam "AUT"]
[BlackTeam "USA"]
[WhiteClock "0:00:38"]
[BlackClock "0:00:00"]

1. e4 {[%clk 0:02:59]}  c5 {[%clk 0:03:00]} 2. Nf3 {[%clk 0:02:57]}  e6 {[%clk 0:03:00]} 3. Nc3 {[%clk 0:02:56]}  Nc6 {[%clk 0:02:59]} 4. h3 {[%clk 0:02:56]}  a6 {[%clk 0:02:56]} 5. d4 {[%clk 0:02:56]}  cxd4 {[%clk 0:02:55]} 6. Nxd4 {[%clk 0:02:57]}  Qc7 {[%clk 0:02:54]} 7. Nxc6 {[%clk 0:02:57]}  bxc6 {[%clk 0:02:54]} 8. Bd3 {[%clk 0:02:57]}  Nf6 {[%clk 0:02:52]} 9. O-O {[%clk 0:02:57]}  d5 {[%clk 0:02:52]} 10. Qe2 {[%clk 0:02:56]}  Be7 {[%clk 0:02:14]} 11. Bg5 {[%clk 0:02:56]}  h6 {[%clk 0:01:57]} 12. Bd2 {[%clk 0:02:53]}  Rb8 {[%clk 0:01:55]} 13. b3 {[%clk 0:02:53]}  a5 {[%clk 0:01:47]} 14. Rfe1 {[%clk 0:02:52]}  Bb7 {[%clk 0:01:43]} 15. Rad1 {[%clk 0:02:37]}  d4 {[%clk 0:01:43]} 16. Na4 {[%clk 0:02:35]}  e5 {[%clk 0:01:43]} 17. c3 {[%clk 0:02:27]}  c5 {[%clk 0:01:42]} 18. cxd4 {[%clk 0:02:25]}  cxd4 {[%clk 0:01:40]} 19. Rc1 {[%clk 0:02:22]}  Qd8 {[%clk 0:01:40]} 20. Bb5+ {[%clk 0:02:21]}  Kf8 {[%clk 0:01:40]} 21. Bd3 {[%clk 0:02:16]}  g5 {[%clk 0:01:34]} 22. Nb2 {[%clk 0:02:03]}  Ra8 {[%clk 0:01:08]} 23. Nc4 {[%clk 0:01:57]}  Nd7 {[%clk 0:01:08]} 24. Qf3 {[%clk 0:01:26]}  Kg7 {[%clk 0:00:58]} 25. Qg3 {[%clk 0:01:26]}  Qb8 {[%clk 0:00:20]} 26. Nxa5 {[%clk 0:01:20]}  Bd6 {[%clk 0:00:15]} 27. b4 {[%clk 0:00:57]}  Nf6 {[%clk 0:00:14]} 28. a4 {[%clk 0:00:51]}  Nh5 {[%clk 0:00:05]} 29. Qf3 {[%clk 0:00:49]}  Nf6 {[%clk 0:00:06]} 30. b5 {[%clk 0:00:43]}  Bc7 {[%clk 0:00:06]} 31. Nc6 {[%clk 0:00:44]}  Bxc6 {[%clk 0:00:06]} 32. Rxc6 {[%clk 0:00:44]}  Bd8 {[%clk 0:00:07]} 33. a5 {[%clk 0:00:44]}  Ra7 {[%clk 0:00:05]} 34. b6 {[%clk 0:00:42]}  Rd7 {[%clk 0:00:03]} 35. a6 {[%clk 0:00:39]}  Rd6 {[%clk 0:00:00]} 36. a7 {[%clk 0:00:38]} 1-0